Cogmind - Beta 13 @@@ ROGUE MODE // 2024.07.16 @ 09:42:41 Player: ZergFTW Result: Destroyed by 8W-XJ5(R) with Subdweller Machine Gun Performance ------------- Evolutions (0) 0 Regions Visited (2) 400 Robots Destroyed (35) 175 Value Destroyed (967) 967 Prototype IDs (0) 0 Alien Tech Used (0) 0 Bonus (0) 0 TOTAL SCORE: 1542 Bonus ------- None Cogmind --------- Core Integrity 0/250 Matter 210/300 Energy 236/250 System Corruption 1% Temperature Cool (0) Movement Treading (320) Ox2 Location -10/Subcaves Parts ------- > --- POWER (1) -------- Ion Engine > --- PROPULSION (2) --- Light Treads > --- UTILITY (2) ------ High-capacity Storage Unit Light Armor Plating > --- WEAPON (2) ------- Light Cannon Light Cannon > --- INVENTORY (20) --- Ion Engine Improved Ion Engine Aluminum Leg Aluminum Leg Aluminum Leg Aluminum Leg Medium Matter Pod (100) Visual Processing Unit Sensor Array Light Armor Plating Light Armor Plating Medium Laser Assault Rifle Heavy Assault Rifle Light Cannon Mining Laser Peak State ------------ > --- POWER ------------ Ion Engine > --- PROPULSION ------- Light Treads Light Treads > --- UTILITY ---------- High-capacity Storage Unit Targeting Computer > --- WEAPON ----------- Assault Rifle Assault Rifle > --- INVENTORY -------- Ion Engine Ion Engine Light Treads Light Treads Aluminum Leg Aluminum Leg Aluminum Leg Aluminum Leg Flight Unit Medium Matter Pod Visual Processing Unit Sensor Array Light Armor Plating Light Armor Plating Medium Laser Light Cannon Light Cannon Light Cannon Mining Laser [Rating: 9] Favorites ----------- Power Ion Engine Engine Ion Engine Propulsion Light Treads Treads Light Treads Leg Aluminum Leg Utility High-capacity Storage Unit Device Sensor Array Storage High-capacity Storage Unit Processor Targeting Computer Protection Light Armor Plating Weapon Assault Rifle Ballistic Gun Assault Rifle Ballistic Cannon Light Cannon Special Weapon Mining Laser Build | -11 -10 -10 ------- Run | Yrd Mat Sub Slots Evolved . | . . . Power . | . . . Propulsion . | . . . Utility . | . . . Weapon . | . . . Parts Attached 35 | 6 13 16 Power 3 | 1 1 1 Engine 3 | 1 1 1 Core . | . . . Reactor . | . . . Propulsion 11 | 2 7 2 Treads 8 | 2 4 2 Leg 3 | . 3 . Wheel . | . . . Hover . | . . . Flight . | . . . Utility 6 | 1 2 3 Device 1 | . . 1 Storage 2 | 1 1 . Processor 1 | . 1 . Hackware . | . . . Protection 2 | . . 2 Artifact . | . . . Weapon 15 | 2 3 10 Energy Gun . | . . . Energy Cannon . | . . . Ballistic Gun 5 | 2 3 . Ballistic Cannon 6 | . . 6 Launcher . | . . . Special Weapon 4 | . . 4 Impact Weapon . | . . . Slashing Weapon . | . . . Piercing Weapon . | . . . Special Melee Weapon . | . . . Unidentified Prototypes . | . . . Parts Lost 7 | . 1 6 Power 1 | . . 1 Propulsion 4 | . 1 3 Utility 1 | . . 1 Weapon 1 | . . 1 Highest Loss Streak 4 | . 1 4 To Critical Strikes . | . . . Average Slot Usage (%) 96 | . 96 95 Engine 14 | . 14 14 Treads 22 | . 21 23 Leg 3 | . 6 . Storage 14 | . 14 14 Processor 7 | . 10 2 Protection 4 | . . 11 Ballistic Gun 19 | . 27 5 Ballistic Cannon 6 | . . 18 Special Weapon 1 | . . 3 Naked Turns . | . . . Heaviest Build 54 | 14 49 54 Greatest Support 40 | 40 40 40 Greatest Overweight (x) 2 | . 2 2 Average Overweight (x) . | . . 1 Largest Inventory Capacity 20 | 8 20 20 Average Capacity 17 | 7 17 20 Most Carried 20 | 3 20 20 Average Carried 14 | 1 13 17 Final Capacity 20 | 8 20 20 Final Carried 20 | 3 20 16 Class Distribution -------------------- 98% | Mutant Dominant Class ---------------- Mutant | -10/Materials Mutant | -10/Subcaves Resources | -11 -10 -10 ----------- Run | Yrd Mat Sub Matter Collected 1384 | 296 696 392 Remotely . | . . . Salvage Created 1234 | 82 964 188 Parts 73 | 4 59 10 Haulers Intercepted 2 | . 2 . Recyclers Shooed 1 | . 1 . Parts Field Recycled . | . . . Retrieved Matter . | . . . Parts Self-Destructed 12 | . . 12 Prevented . | . . . Kills | -11 -10 -10 ------- Run | Yrd Mat Sub Combat Hostiles Destroyed 23 | . 15 8 Guns 15 | . 15 . Cannons 8 | . . 8 Classes Destroyed 9 | 2 5 2 Worker 2 | . 2 . Builder 2 | . 2 . Tunneler 1 | 1 . . Hauler 2 | . 2 . Recycler 2 | 1 1 . Watcher 3 | . 3 . Grunt 15 | . 15 . Sentry 1 | . . 1 Subdweller 7 | . . 7 Best Kill Streak 4 | 1 4 2 Combat Bots Only 4 | . 4 2 Max Kills in Single Turn 2 | 1 2 1 Gunslinging 1 | . 1 . Exploded . | . . . Melee . | . . . Uniques/NPCs Destroyed . | . . . Combat | -11 -10 -10 -------- Run | Yrd Mat Sub Hostile Shots Fired 129 | . 66 63 Missed 36 | . 15 21 Damage Taken 1515 | . 630 885 Core 275 | . 134 141 Absorbed by Shields . | . . . Regen/Repaired (Parts) 97 | . 97 . Core Remaining (%) 100 | 100 . . Volleys Fired 126 | 7 70 49 Largest 2 | 2 2 2 Hottest 100 | 40 40 100 Shots Fired 243 | 14 142 87 Gun 167 | 14 142 11 Cannon 69 | . . 69 Launcher . | . . . Special 7 | . . 7 Kinetic 236 | 14 142 80 Thermal 7 | . . 7 Explosive . | . . . Electromagnetic . | . . . Robot Hit Streak 14 | 5 14 13 Robot Miss Streak 3 | 2 3 1 Penetration Max . | . . . Secondary Targets 2 | . 2 . Max Gunslinging Chain 1 | . 1 . Shots Hit Robots 171 | 10 96 65 Core Hits 58 | 3 40 15 Critical Kills 1 | . 1 . Critical Parts Destroyed 1 | . 1 . Critical Strikes 5 | . 2 3 Destroy 2 | . 2 . Blast 3 | . . 3 Melee Attacks . | . . . Impact . | . . . Slashing . | . . . Piercing . | . . . Sneak Attacks . | . . . Combat Hostiles . | . . . Follow-up Attacks . | . . . Damage Inflicted 2083 | 116 1213 754 Guns 1329 | 116 1213 . Cannons 754 | . . 754 Explosions . | . . . Melee . | . . . Ramming . | . . . Kinetic 2083 | 116 1213 754 Thermal . | . . . Explosive . | . . . Electromagnetic . | . . . Impact . | . . . Slashing . | . . . Piercing . | . . . Highest Corruption 1 | . 1 1 Average Corruption 1 | . 1 1 Corruption Purged . | . . . Corruption Blocked . | . . . Effects 42 | . 28 14 Message Errors 13 | . 6 7 Matter Fused 10 | . 7 3 Heat Flow Errors 3 | . 3 . Energy Discharges 5 | . 3 2 Data Loss (minor) 3 | . 2 1 Data Loss (major) 2 | . 2 . Misfires 3 | . 2 1 Alerts 3 | . 3 . Overload Shots . | . . . Overflow Damage 8 | . . 8 Projectiles 8 | . . 8 Explosions . | . . . Melee . | . . . Knockbacks 6 | . . 6 Impact . | . . . Kinetic 6 | . . 6 Secondary . | . . . Self-Inflicted Damage . | . . . Shots . | . . . Rammed . | . . . Targets Rammed . | . . . Kicked . | . . . Crushed . | . . . Highest Temperature 237 | . 237 . Average Temperature 77 | . 77 . Received Heat Transfer 576 | . 348 228 Siege Activations . | . . . Robots Corrupted . | . . . Combat Hostiles . | . . . Parts Fried . | . . . Impact Corruptions . | . . . Robots Melted . | . . . Combat Hostiles . | . . . Parts Melted . | . . . Heat Transferred . | . . . Parts Sabotaged . | . . . Parts Stolen . | . . . Parts Stripped . | . . . Power Chain Reactions . | . . . Alert | -11 -10 -10 ------- Run | Yrd Mat Sub Peak Influence 313 | 10 313 . Initial 6 | . 6 . Average 88 | 3 92 . Maximum Alert Level 1 | . 1 . Low Security (%) 87 | 100 86 . Level 1 12 | . 13 . Level 2 . | . . . Level 3 . | . . . Level 4 . | . . . Level 5 . | . . . High Security . | . . . Max Security . | . . . Squads Dispatched 2 | . 2 . Investigation 2 | . 2 . Extermination . | . . . Reinforcement . | . . . Assault . | . . . Garrison . | . . . Intercept . | . . . Searches Triggered . | . . . Construction Impeded . | . . . Haulers Reinforced . | . . . Active Scanning Responses . | . . . Cargo Convoy Interrupts . | . . . Stealth | -11 -10 -10 --------- Run | Yrd Mat Sub Distress Signals 1 | . 1 . Communications Jammed . | . . . Distress Signals . | . . . Times Spotted 36 | . 27 9 Peak Tracking Total 4 | . 4 2 Tactical Retreats 2 | . 2 . Traps | -11 -10 -10 ------- Run | Yrd Mat Sub Traps Triggered 4 | . 4 . Indirectly . | . . . Trap Hack Attempts . | . . . Triggered . | . . . Disarmed . | . . . Reprogrammed . | . . . Reused . | . . . Traps Extracted . | . . . Installed . | . . . Triggered 2 | . . 2 Machines | -11 -10 -10 ---------- Run | Yrd Mat Sub Machines Disabled 1 | . 1 . Max in Single Turn 1 | . 1 . Machines Repaired . | . . . Machines Dismantled . | . . . Machines Sabotaged . | . . . Overloaded Fab Kills . | . . . Hacking | -11 -10 -10 --------- Run | Yrd Mat Sub Machines Accessed 10 | . 9 1 Terminals 7 | . 7 . Fabricators . | . . . Repair Stations 1 | . 1 . Recycling Units 1 | . 1 . Scanalyzers . | . . . Garrison Access . | . . . Total Hacks 29 | . 27 2 Successful 12 | . 10 2 Failed 17 | . 17 . Catastrophic 2 | . 2 . Database Lockouts . | . . . Manual 14 | . 14 . Terminals 21 | . 21 . Fabricators . | . . . Repair Stations 4 | . 4 . Recycling Units 2 | . 2 . Scanalyzers . | . . . Garrison Access . | . . . Terminal Hacks 6 | . 4 2 Record 2 | . . 2 Robot Analysis 1 | . 1 . Branch Access Points 1 | . 1 . Unreport Threat 2 | . 2 . Fabricator Hacks . | . . . Repair Station Hacks 2 | . 2 . Scan Component 1 | . 1 . Repair 1 | . 1 . Recycling Unit Hacks 1 | . 1 . Retrieve Components 1 | . 1 . Scanalyzer . | . . . Garrison Access Hacks . | . . . Unauthorized Hacks 3 | . 3 . Terminals 3 | . 3 . Botnet 3 | . 3 . Fabricators . | . . . Repair Stations . | . . . Recycling Units . | . . . Scanalyzers . | . . . Garrison Access . | . . . Data Cores Recovered . | . . . Used . | . . . Hacking Detections 8 | . 8 . Full Trace Events 3 | . 3 . Feedback Events 1 | . 1 . Corruption 1 | . 1 . Feedback Blocked . | . . . Robot Schematics Acquired . | . . . Robots Built . | . . . Authchips . | . . . Time . | . . . Total Robot Build Rating . | . . . Part Schematics Acquired . | . . . Parts Built . | . . . Authchips . | . . . Time . | . . . Total Part Build Rating . | . . . Parts Repaired 1 | . 1 . Time 13 | . 13 . Parts Recycled . | . . . Recycled Matter . | . . . Retrieved Matter . | . . . Retrieved Components 9 | . 9 . Parts Scanalyzed . | . . . Part Schematics Acquired . | . . . Parts Damaged . | . . . Bothacking | -11 -10 -10 ------------ Run | Yrd Mat Sub Used RIF Installer . | . . . Robots Hacked . | . . . Non-combat . | . . . Combat . | . . . Robot Hacks Applied . | . . . Relay Couplers Released . | . . . Fabnet Peak Effective % . | . . . Robots Rewired . | . . . Allies Hacked . | . . . Hacks Repelled . | . . . Allies | -11 -10 -10 -------- Run | Yrd Mat Sub Total Allies . | . . . Largest Group . | . . . Highest-Rated Group . | . . . Highest-Rated Ally . | . . . Total Orders . | . . . Ally Attacks . | . . . Total Damage . | . . . Kills . | . . . Allies Corrupted . | . . . Allies Melted . | . . . Intel | -11 -10 -10 ------- Run | Yrd Mat Sub Robot Analysis Total 1 | . 1 . Derelict Logs Recovered 1 | . . 1 Drone Launches . | . . . Drone Recoveries . | . . . Exploration | -11 -10 -10 ------------- Run | Yrd Mat Sub Turns Passed 4154 | 128 2522 1504 Spaces Moved 1620 | 62 1049 509 Core 3 | 3 . . Treads 1353 | 59 785 509 Legs 264 | . 264 . Wheels . | . . . Hover . | . . . Flight . | . . . Fastest Speed 50 | 50 120 240 Average Speed 226 | 154 213 261 Slowest Speed 320 | 160 320 320 Overloaded Moves . | . . . Propulsion Burnouts . | . . . Robots Hopped . | . . . Cave-ins Triggered . | . . . Exploration Rate (%) 47 | 5 99 39 Regions Visited 2 Branch Regions 1 Pre-discovered Areas . | . . . Known Exits Taken . | . . . Unknown Exits Taken 2 | 1 1 . Scrap Searched . | . . . Spaces Dug . | . . . Terrain Destroyed . | . . . Melee . | . . . Projectile . | . . . AOE . | . . . Terrain Rammed . | . . . Walls Destroyed . | . . . Machines Disabled . | . . . Actions | -11 -10 -10 --------- Run | Yrd Mat Sub Total 1849 | 77 1192 580 Wait 45 | . 41 4 Move 1618 | 61 1048 509 Hop . | . . . Pick Up 22 | 3 17 2 Fast Attach 11 | 6 5 . Attach 6 | . 1 5 Detach . | . . . Swap 18 | . 7 11 Drop 3 | . 3 . Fire 126 | 7 70 49 Melee . | . . . Ram . | . . . Kick . | . . . Crush . | . . . Escape Stasis . | . . . Rewire . | . . . Trap . | . . . Miscellaneous . | . . . Route ------- -11/Scrapyard -10/Materials (discovered 5 exits: [*Mat x3] / *Min / *Sub) -10/Subcaves (discovered 1 exit: [*Mat]) History --------- Turn | Location | Event 18 | -11/Scrapyard | Discovered new exit (range 14) 129 | -11/Scrapyard | Entered Materials 301 | -10/Materials | Build established: Mutant 401 | -10/Materials | Discovered new exit (range 9) 512 | -10/Materials | Core integrity fell below 50% 1446 | -10/Materials | Discovered new exit (range 11) 1767 | -10/Materials | Discovered new exit (range 10) 1943 | -10/Materials | Discovered new exit (range 16) 1997 | -10/Materials | Repaired Assault Rifle 2192 | -10/Materials | Identified exit to Mines 2591 | -10/Materials | Discovered new exit (range 11) 2651 | -10/Materials | Entered Subcaves 2735 | -10/Subcaves | Visited Clippyterm 3204 | -10/Subcaves | Learned Materials terminal intel 3425 | -10/Subcaves | Discovered new exit (range 14) 3592 | -10/Subcaves | A swath of the cavern ceiling suddenly collapsed 3645 | -10/Subcaves | Core integrity fell below 20% 3725 | -10/Subcaves | Lost 4 parts (3n1u) 4155 | -10/Subcaves | Destroyed by 8W-XJ5(R) with Subdweller Machine Gun Last Messages --------------- 03736_ Acquired 3 matter. 03739_ Acquired 40 matter. 03745_ Acquired 18 matter. 03748_ Acquired 15 matter. 03752_ Acquired 11 matter. 03758_ Acquired 1 matter. 03790_ Acquired 23 matter. 03800_ Acquired 4 matter. 03847_ Subatomizers dissect the Sub. Beam Cannon. 03871_ 80-BLZ(u) builds Twisted Machinery. 03881_ 80-BLZ(u) deconstructs Twisted Machinery. 03895_ Subatomizers dissect the Sub. Power Source. 03912_ 80-BLZ(u) deconstructs Twisted Machinery. 03938_ Subatomizers dissect the Sub. Power Source. 03961_ NY1|9WM5V6PGJSB9R9ULJFXUJH>J<%CAFALWNFN 03981_ Subatomizers dissect the Sub. Power Source. 04009_ System corrupted: Component data lost. 04020_ Subatomizers dissect the Sub. Beam Cannon. 04068_ M:J 02MHSAAJDXY>WLYGCP5MU%E S 04136_ System corrupted: Matter fused (-10). Map ----- +----------------------------------------------------+ | | | | | | | | | | | | | | | | | | | | | | | ?????????????????????????????????????????????????? | | ?????????????????????????????????????????????????? | | ?????????????????????????????????????????????????? | | ?????????????????????????????????????????????????? | | ?????????????????????????????????????????????????? | | ?????????????????????????????????????????????????? | | ?????????????????????????????????????????????????? | | ???????????????????????????##????????????????????? | | ???????????????????????????<#????????????????????? | | ??????????????????????????#&#????????????????????? | | ?????????????????????????? ?????????????????????? | | ??????????????????????###? #?????????????????????? | | ??????????????????????# ## ##????????????????????? | | ??????????????????????# R <#????????????????????? | | ?########???????????### @ ####?????????????????? | | ## ##?????###### ##????????????????? | | #?????# #????????????????? | | #?????# ##????????????????? | | #?????## ###?????????????????? | | ## #?????# # ##???????????????????? | | ?## ###???## ##### #????????????????????? | | ??## ####?# #??## ??????????????????? | | ???# ## ### ##???## ????????????????? | | ???# ## # #?????# ???????????????? | | ???## ##??????#######???????????????? | | #???## #????????????????????????????? | | #????## ## # ###????????????????????????????? | | #???#############??????????????????????????????? | | #????????????????????????????????????????????? | | #???????????????????????????????????????????? | | #???????????????????????????????????????????? | | ? #???????????????????????????????????????????? | | ?# ##???????????????????????????????????????????? | | ?? #????????????????????????????????????????????? | | ??? ????????????????????????????????????????????? | | ??? ##???????????????????????????????????????????? | | ????#????????????????????????????????????????????? | | ?????????????????????????????????????????????????? | | ?????????????????????????????????????????????????? | +----------------------------------------------------+ Best States ------------- Heat Dissipation 25 Energy Generation 10 Energy Capacity 250 Matter Stores 300 Matter Capacity 300 Sight Range 16 Robot Scan Range 14 Terrain Scan Density 10 Armor Coverage 150 Evasion (%) 55 Targeting Accuracy 5 Recoil Reduction 2 Item Schematics ----------------- None Robot Schematics ------------------ None Fabricated ------------ Nothing Alien Tech Used ----------------- None Achievements -------------- None Challenges ------------ None Game ------ Seed ImprinterBladeDriver Manual? 0 Play Time 00:22:30 Cumulative 83.9 hours Start 2024.07.16 @ 09:09:02 End 2024.07.16 @ 09:42:41 Sessions 1 Manual Loads 0 Difficulty Rogue Special Mode None Game No. 56 Rogue 55 Adventurer 1 Explorer 0 Win Type - Total 0 Types 0/0/0/0/0/0/0/0/0 Lore% 36 Gallery% 39 Achievement% 37 Wizard Run 0 Options --------- Layout 1 ASCII 0 Keyboard 0 Movement Mouse Keybinds 0 Fullscreen 1 Font 24/Proggy Map View 76x35 Zoom Use 0% Tactical HUD 1 Map Filters NONE Filters NONE Steam 1 RUN: 18c2d93c-8391-45de-88ea-d56dc4459cc1